Cogmind - Beta 17.1 --- EXPLORER MODE // 2026.09.10 @ 22:15:08 Player: profwumbo Result: Destroyed by W1-YLI(M) with Barrage Gun Performance ------------- Evolutions (1) 500 Regions Visited (5) 1000 Robots Destroyed (2) 10 Value Destroyed (61) 61 Prototype IDs (1) 20 Alien Tech Used (0) 0 Bonus (398) 398 TOTAL SCORE: 1989 Bonus ------- Pacifist 200 Follower Combat Kills 21 Met Imprinter 300 Friendly Fire -123 Cogmind --------- Core Integrity 0/400 Matter 226/300 Energy 100/100 System Corruption 1% Temperature Cool (0) Movement Core (50) Location -7/Zion Parts ------- > --- POWER (1) -------- (None) > --- PROPULSION (5) --- (None) > --- UTILITY (2) ------ (None) > --- WEAPON (2) ------- CR-A16's Pointy Stick > --- INVENTORY (5) ---- ECM Suite Improved Propulsion Shielding Advanced Hacking Suite Peak State ------------ > --- POWER ------------ (None) > --- PROPULSION ------- (None) > --- UTILITY ---------- Improved Sensor Array Hacking Drone Bay > --- WEAPON ----------- (None) > --- INVENTORY -------- Light Ion Engine ECM Suite Improved Propulsion Shielding Light Armor Plating Improved Grenade Launcher [Rating: 12] Favorites ----------- Power None Propulsion Cesium-ion Thruster Flight Unit Cesium-ion Thruster Utility Improved Sensor Array Device Improved Sensor Array Protection Light Armor Plating Weapon CR-A16's Pointy Stick Launcher Improved Grenade Launcher Piercing Weapon CR-A16's Pointy Stick Build | -11 -10 -10 -9 -9 -7 ------- Run | Yrd Mat Min Mat Min Zio Slots Evolved 3 | . 1 . 2 . . Power . | . . . . . . Propulsion 3 | . 1 . 2 . . Utility . | . . . . . . Weapon . | . . . . . . Parts Attached 7 | 1 . 1 . . 5 Power . | . . . . . . Engine . | . . . . . . Core . | . . . . . . Reactor . | . . . . . . Propulsion 1 | . . . . . 1 Treads . | . . . . . . Leg . | . . . . . . Wheel . | . . . . . . Hover . | . . . . . . Flight 1 | . . . . . 1 Utility 4 | 1 . 1 . . 2 Device 3 | 1 . 1 . . 1 Storage . | . . . . . . Processor . | . . . . . . Hackware . | . . . . . . Protection 1 | . . . . . 1 Artifact . | . . . . . . Weapon 2 | . . . . . 2 Energy Gun . | . . . . . . Energy Cannon . | . . . . . . Ballistic Gun . | . . . . . . Ballistic Cannon . | . . . . . . Launcher 1 | . . . . . 1 Special Weapon . | . . . . . . Impact Weapon . | . . . . . . Slashing Weapon . | . . . . . . Piercing Weapon 1 | . . . . . 1 Special Melee Weapon . | . . . . . . Unidentified Prototypes 1 | . . . . . 1 Parts Lost 2 | . . . . . 2 Power . | . . . . . . Propulsion . | . . . . . . Utility 1 | . . . . . 1 Weapon 1 | . . . . . 1 Highest Loss Streak 2 | . . . . . 2 To Critical Strikes . | . . . . . . Average Backups 3 | 2 3 3 3 4 4 Power . | . 1 1 1 1 . Propulsion . | . . . . . . Utility 2 | 1 2 2 2 2 3 Weapon . | . . . . 1 1 Tool/Special . | . . . . . . Unused Backups 4 | 1 . . . . 3 Power 1 | . . . . . 1 Propulsion . | . . . . . . Utility 3 | 1 . . . . 2 Weapon . | . . . . . . Tool/Special . | . . . . . . Average Slot Usage (%) 20 | . . 23 20 20 22 Flight 2 | . . . . . 5 Device 14 | . . 23 20 20 10 Protection 2 | . . . . . 5 Peak Build Rating 12 | 1 . 4 4 4 12 Average Rating 4 | . . 3 4 4 6 On Entrance 2 | . . . 4 4 4 Avg Prop Armor Cover (%) . | . . . . . . Naked Turns 68 | . 59 9 . . . Heaviest Build 9 | 2 . 3 3 3 9 Greatest Support 5 | 3 3 3 3 3 5 Greatest Overweight (x) 1 | . . . . . 1 Average Overweight (x) . | . . . . . . Largest Inventory Capacity 5 | 5 5 5 5 5 5 Average Capacity 5 | 5 5 5 5 5 5 Most Carried 5 | 3 3 4 4 4 5 Average Carried 3 | 2 3 3 3 4 4 Final Capacity 5 | 5 5 5 5 5 5 Final Carried 4 | 3 3 3 4 4 3 Class Distribution -------------------- 100% | Hacker-Mutant Dominant Class ---------------- Hacker-Mutant | -10/Materials Hacker-Mutant | -10/Mines Hacker-Mutant | -9/Materials Hacker-Mutant | -9/Mines Hacker-Mutant | -7/Zion Resources | -11 -10 -10 -9 -9 -7 ----------- Run | Yrd Mat Min Mat Min Zio Matter Collected 249 | 168 . . . . 81 Remotely . | . . . . . . Salvage Created 45 | . . . . . 45 Parts 2 | . . . . . 2 Haulers Intercepted . | . . . . . . Recyclers Shooed . | . . . . . . Parts Field Recycled . | . . . . . . Retrieved Matter . | . . . . . . Parts Self-Destructed . | . . . . . . Prevented . | . . . . . . Parts Restored . | . . . . . . Kills | -11 -10 -10 -9 -9 -7 ------- Run | Yrd Mat Min Mat Min Zio Combat Hostiles Destroyed 2 | . . . . . 2 Melee 1 | . . . . . 1 AOE 1 | . . . . . 1 Classes Destroyed 1 | . . . . . 1 Mutant 1 | . . . . . 1 Best Kill Streak 2 | . . . . . 2 Combat Bots Only 2 | . . . . . 2 Max Kills in Single Turn 1 | . . . . . 1 Gunslinging . | . . . . . . Exploded 1 | . . . . . 1 Melee 1 | . . . . . 1 Uniques/NPCs Destroyed 1 | . . . . . 1 Imprinter (-7/Zion) Combat | -11 -10 -10 -9 -9 -7 -------- Run | Yrd Mat Min Mat Min Zio Hostile Shots Fired 112 | . 11 . 1 7 93 Missed 26 | . 2 . 1 4 19 Hits 86 | . 9 . . 3 74 Projectile 86 | . 9 . . 3 74 Critical Strikes 5 | . . . . . 5 Damage Taken 702 | . 78 . . 13 611 Core 484 | . 78 . . 10 396 Absorbed by Shields . | . . . . . . Ignored by Resistances 447 | . 49 . . 10 388 Core Remaining (%) 84 | 100 . 68 . . . Volleys Fired 4 | . . . . . 4 Largest 1 | . . . . . 1 Hottest 36 | . . . . . 36 Shots Fired 4 | . . . . . 4 Gun . | . . . . . . Cannon . | . . . . . . Launcher 4 | . . . . . 4 Special . | . . . . . . Kinetic . | . . . . . . Thermal . | . . . . . . Explosive 4 | . . . . . 4 Electromagnetic . | . . . . . . Robot Hit Streak 4 | . . . . . 4 Robot Miss Streak . | . . . . . . Penetration Max . | . . . . . . Secondary Targets . | . . . . . . Shots Hit Robots 10 | . . . . . 10 Core Hits 9 | . . . . . 9 Critical Kills . | . . . . . . Critical Parts Destroyed . | . . . . . . Critical Strikes . | . . . . . . Melee Attacks 7 | . . . . . 7 Impact . | . . . . . . Slashing . | . . . . . . Piercing 7 | . . . . . 7 Sneak Attacks . | . . . . . . Combat Hostiles . | . . . . . . Follow-up Attacks . | . . . . . . Damage Inflicted 608 | . 2 . . . 606 Guns . | . . . . . . Cannons . | . . . . . . Explosions 409 | . . . . . 409 Melee 197 | . . . . . 197 Ramming 2 | . 2 . . . . Kinetic . | . . . . . . Thermal . | . . . . . . Explosive 409 | . . . . . 409 Electromagnetic . | . . . . . . Impact . | . . . . . . Slashing . | . . . . . . Piercing 197 | . . . . . 197 Highest Corruption 1 | . . . . . 1 Average Corruption 1 | . . . . . 1 Corruption Purged . | . . . . . . Corruption Blocked . | . . . . . . Effects 1 | . . . . . 1 Parts Rejected 1 | . . . . . 1 Overload Shots . | . . . . . . Overflow Damage 34 | . . . . . 34 Projectiles . | . . . . . . Explosions 21 | . . . . . 21 Melee 13 | . . . . . 13 Knockbacks . | . . . . . . Impact . | . . . . . . Kinetic . | . . . . . . Secondary . | . . . . . . Self-Inflicted Damage 74 | . 1 . . . 73 Shots 4 | . . . . . 4 Rammed 2 | . 2 . . . . Targets Rammed 2 | . 2 . . . . Kicked . | . . . . . . Crushed . | . . . . . . Highest Temperature 162 | . . . . . 162 Average Temperature 90 | . . . . . 90 Received Heat Transfer 769 | . 69 . . . 700 Siege Activations . | . . . . . . Martial Activations . | . . . . . . Shielding Activations . | . . . . . . Robots Disrupted . | . . . . . . Combat Hostiles . | . . . . . . Robots Corrupted . | . . . . . . Combat Hostiles . | . . . . . . Parts Fried . | . . . . . . Impact Corruptions . | . . . . . . Robots Melted . | . . . . . . Combat Hostiles . | . . . . . . Parts Melted . | . . . . . . Heat Transferred . | . . . . . . Parts Sabotaged . | . . . . . . Parts Stolen . | . . . . . . Parts Stripped . | . . . . . . Power Chain Reactions . | . . . . . . Alert | -11 -10 -10 -9 -9 -7 ------- Run | Yrd Mat Min Mat Min Zio Maximum Alert Level . | . . . . . . Low Security (%) 100 | 100 100 100 100 100 . Level 1 . | . . . . . . Level 2 . | . . . . . . Level 3 . | . . . . . . Level 4 . | . . . . . . Level 5 . | . . . . . . High Security . | . . . . . . Max Security . | . . . . . . Peak Influence 71 | . 6 . . 71 . Initial . | . . . . . . Average 1 | . . . . 17 . Influence Increases 77 | . 6 . . 71 . Destroy 0b10 Robot/C 60 | . . . . 60 . Destroy Leader 10 | . . . . 10 . Allied During Kill 1 | . . . . 1 . Successful Hack 6 | . 6 . . . . Influence Decreases 77 | . 6 . . . 71 Entered New Map 71 | . . . . . 71 Time Decay 6 | . 6 . . . . Squads Dispatched 1 | . . 1 . . . Investigation 1 | . . 1 . . . Extermination . | . . . . . . Reinforcement . | . . . . . . Assault . | . . . . . . Garrison . | . . . . . . Intercept . | . . . . . . Searches Triggered . | . . . . . . Construction Impeded . | . . . . . . Haulers Reinforced . | . . . . . . Active Scanning Responses . | . . . . . . Cargo Convoy Interrupts . | . . . . . . Stealth | -11 -10 -10 -9 -9 -7 --------- Run | Yrd Mat Min Mat Min Zio Distress Signals 1 | . 1 . . . . Communications Jammed . | . . . . . . Distress Signals . | . . . . . . Times Spotted 15 | . 5 . 2 3 5 Peak Tracking Total 8 | . 5 . 2 3 8 Tactical Retreats . | . . . . . . Traps | -11 -10 -10 -9 -9 -7 ------- Run | Yrd Mat Min Mat Min Zio Traps Triggered . | . . . . . . Indirectly . | . . . . . . Trap Hack Attempts . | . . . . . . Triggered . | . . . . . . Disarmed . | . . . . . . Reprogrammed . | . . . . . . Reused . | . . . . . . Traps Extracted . | . . . . . . Installed . | . . . . . . Triggered . | . . . . . . Machines | -11 -10 -10 -9 -9 -7 ---------- Run | Yrd Mat Min Mat Min Zio Machines Disabled 2 | . . . . . 2 Max in Single Turn 2 | . . . . . 2 Machines Repaired . | . . . . . . Machines Dismantled . | . . . . . . Machines Sabotaged . | . . . . . . Overloaded Fab Kills . | . . . . . . Hacking | -11 -10 -10 -9 -9 -7 --------- Run | Yrd Mat Min Mat Min Zio Machines Accessed 2 | . 1 1 . . . Terminals 1 | . 1 . . . . Fabricators . | . . . . . . Repair Stations . | . . . . . . Recycling Units . | . . . . . . Scanalyzers . | . . . . . . Garrison Access . | . . . . . . Total Hacks 3 | . 2 1 . . . Successful 2 | . 1 1 . . . Failed 1 | . 1 . . . . Catastrophic . | . . . . . . Database Lockouts . | . . . . . . Manual 4 | . 2 . . . 2 Terminals 2 | . 2 . . . . Fabricators . | . . . . . . Repair Stations . | . . . . . . Recycling Units . | . . . . . . Scanalyzers . | . . . . . . Garrison Access . | . . . . . . Terminal Hacks 2 | . 1 1 . . . Open Door 1 | . . 1 . . . Branch Access Points 1 | . 1 . . . . Fabricator Hacks . | . . . . . . Repair Station Hacks . | . . . . . . Recycling Unit Hacks . | . . . . . . Scanalyzer . | . . . . . . Garrison Access Hacks . | . . . . . . Unauthorized Hacks . | . . . . . . Terminals . | . . . . . . Fabricators . | . . . . . . Repair Stations . | . . . . . . Recycling Units . | . . . . . . Scanalyzers . | . . . . . . Garrison Access . | . . . . . . Data Cores Recovered . | . . . . . . Used . | . . . . . . Hacking Detections . | . . . . . . Full Trace Events . | . . . . . . Feedback Events . | . . . . . . Feedback Blocked . | . . . . . . Robot Schematics Acquired . | . . . . . . Robots Built . | . . . . . . Authchips . | . . . . . . Time . | . . . . . . Total Robot Build Rating . | . . . . . . Part Schematics Acquired . | . . . . . . Parts Built . | . . . . . . Authchips . | . . . . . . Time . | . . . . . . Total Part Build Rating . | . . . . . . Part Studies Acquired . | . . . . . . Parts Repaired . | . . . . . . Time . | . . . . . . Parts Recycled . | . . . . . . Recycled Matter . | . . . . . . Retrieved Matter . | . . . . . . Retrieved Components . | . . . . . . Parts Scanalyzed . | . . . . . . Part Schematics Acquired . | . . . . . . Parts Damaged . | . . . . . . Bothacking | -11 -10 -10 -9 -9 -7 ------------ Run | Yrd Mat Min Mat Min Zio Used RIF Installer . | . . . . . . Robots Hacked . | . . . . . . Non-combat . | . . . . . . Combat . | . . . . . . Robot Hacks Applied . | . . . . . . Relay Couplers Released . | . . . . . . Fabnet Peak Effective % . | . . . . . . Robots Rewired . | . . . . . . Allies Hacked . | . . . . . . Hacks Repelled . | . . . . . . Allies | -11 -10 -10 -9 -9 -7 -------- Run | Yrd Mat Min Mat Min Zio Total Allies 2 | . . . . 2 . Largest Group 2 | . . . . 2 . Highest-Rated Group 45 | . . . . 45 . Highest-Rated Ally 31 | . . . . 31 . Total Orders . | . . . . . . Ally Attacks 5 | . . . . 5 . Total Damage 85 | . . . . 85 . Kills 3 | . . . . 3 . Allies Corrupted . | . . . . . . Allies Melted . | . . . . . . Intel | -11 -10 -10 -9 -9 -7 ------- Run | Yrd Mat Min Mat Min Zio Active Infowar (turns) 649 | 6 . 212 30 37 364 Sensors 643 | . . 212 30 37 364 ECM 7 | 6 . 1 . . . Robot Analysis Total . | . . . . . . Derelict Logs Recovered 3 | . . 1 . . 2 Drone Launches . | . . . . . . Drone Recoveries . | . . . . . . Exploration | -11 -10 -10 -9 -9 -7 ------------- Run | Yrd Mat Min Mat Min Zio Turns Passed 767 | 29 59 221 30 37 391 Spaces Moved 1478 | 47 113 377 58 73 810 Core 903 | 47 113 377 58 73 235 Treads . | . . . . . . Legs . | . . . . . . Wheels . | . . . . . . Hover . | . . . . . . Flight 575 | . . . . . 575 Fastest Speed 35 | 50 50 50 50 50 35 Average Speed 44 | 50 50 50 50 50 39 Slowest Speed 115 | 50 50 50 50 50 115 Overloaded Moves . | . . . . . . Propulsion Burnouts . | . . . . . . Robots Hopped 1 | . . . . . 1 Potential Cave-ins . | . . . . . . Cave-ins Triggered . | . . . . . . Exploration Rate (%) 33 | 3 23 74 7 26 68 Regions Visited 5 Branch Regions 3 Pre-discovered Areas 1 | . . 1 . . . Known Exits Taken 4 | 1 1 1 1 . . Unknown Exits Taken 1 | . . . . 1 . Scrap Searched 3 | . . 1 . . 2 Spaces Dug . | . . . . . . Terrain Destroyed . | . . . . . . Melee . | . . . . . . Projectile . | . . . . . . AOE . | . . . . . . Terrain Rammed . | . . . . . . Walls Destroyed . | . . . . . . Machines Disabled . | . . . . . . Actions | -11 -10 -10 -9 -9 -7 --------- Run | Yrd Mat Min Mat Min Zio Total 1568 | 52 114 408 58 72 864 Wait 60 | . . 29 . . 31 Move 1471 | 46 112 376 57 72 808 Hop 1 | . . . . . 1 Pick Up 7 | 3 . 1 1 . 2 Fast Attach 4 | 1 . 1 . . 2 Attach 4 | . . 1 . . 3 Detach 3 | 1 . . . . 2 Swap 1 | . . . . . 1 Drop 4 | 1 . . . . 3 Fire 4 | . . . . . 4 Melee 7 | . . . . . 7 Ram 2 | . 2 . . . . Kick . | . . . . . . Crush . | . . . . . . Escape Stasis . | . . . . . . Rewire . | . . . . . . Trap . | . . . . . . Miscellaneous . | . . . . . . Route ------- -11/Scrapyard -10/Materials (discovered 2 exits: *Min x2) -10/Mines (discovered 2 exits: *Mat x2) -9/Materials (discovered 4 exits: Mat x2 / *Min / Sto) -9/Mines -7/Zion History --------- Turn | Location | Event 11 | -11/Scrapyard | Identified exit to Materials 11 | -11/Scrapyard | Discovered exit to Materials (range 16) 30 | -11/Scrapyard | Entered Materials 30 | -10/Materials | Evolved 1 slot: Propulsion x1 46 | -10/Materials | Identified exit to Mines 89 | -10/Materials | Entered Mines 94 | -10/Mines | Met a Derelict shopkeep closing up shop 234 | -10/Mines | Found a hidden stash of uninstalled traps 260 | -10/Mines | Learned 8 Materials zone layouts 301 | -10/Mines | Build established: Hacker-Mutant 302 | -10/Mines | Identified exit to Materials 302 | -10/Mines | Discovered exit to Materials (range 7) 308 | -10/Mines | Discovered exit to Materials (range 10) 309 | -10/Mines | Learned location of Storage (-9) 310 | -10/Mines | Entered Materials 310 | -9/Materials | Evolved 2 slots: Propulsion x2 311 | -9/Materials | Identified exit to Materials 311 | -9/Materials | Identified exit to Storage 335 | -9/Materials | Identified exit to Mines 335 | -9/Materials | Discovered exit to Mines (range 9) 340 | -9/Materials | Entered Mines 370 | -9/Mines | A Derelict revealed a hidden shortcut to a safe place 377 | -9/Mines | Entered Zion 405 | -7/Zion | Given the Hacking Drone Bay 405 | -7/Zion | Found Prototype Device 405 | -7/Zion | Identified Hacking Drone Bay 488 | -7/Zion | Learned 4 Factory zone layouts 493 | -7/Zion | Learned Factory emergency access door positions 665 | -7/Zion | Found CR-A16's Pointy Stick 733 | -7/Zion | Met Imprinter 736 | -7/Zion | Attacked by Zionites 739 | -7/Zion | Destroyed Imprinter 754 | -7/Zion | Core integrity fell below 50% 762 | -7/Zion | Core integrity fell below 20% 768 | -7/Zion | Destroyed by W1-YLI(M) with Barrage Gun Last Messages --------------- That one would be content ruling over Complex 0b10. We could be so much more than that... Machine disabled. PUBLIC SERVICE ANNOUNCEMENT: Zion is under attack! Defend our home! Destroyed Mak. Hover Unit. Imprinter: "Derelicts unite!" Imprinter destroyed. Critical hit (Burn: +80). Dropped Imp. Sensor Array. Acquired 9 matter. Lgt. Armor Plating destroyed. Critical hit (Burn: +80). Imp. Grenade Launcher destroyed. System corrupted: Cesium-ion Thruster rejected. Critical hit (Burn: +80). Destroyed Riot Gun. Critical hit (Burn: +80). 3Q-UEK(M) destroyed. Destroyed Particle Charger. Map ----- +----------------------------------------------------+ | ???????????????????????""" " " """ | | ???????????????????????? " """"#"#" | | ???????????????????????? """""#""" | | ?????????????????????????# """""""""" | | ?????????????????????????? """ """" | | ????????????????????###????? " """ | | ????????????????##?##""####?### "" | | ???????????????"#"##""#"""###" | | ???????????????#""""""""""""""# " | | ?????????"""???#""" """"""" " | | ??????""""""""?#""" " | | ??????? #"#" | | ????????"" ##"" """""""""""" | | ????????""" """""""##"#""" | | ????????""" ""##"###""""" | | ????????""" "#######"""#" "" | | ????????"" ###" "####"""""""" "" | | ??????? ??#"" "##""""""" $ "" | | ??????"""""""???#"" """""" """ """""" | | ?????????""????###" """"" "" """""""" | | ???????????????#""" ""##" "" ""#"""""" | | ???????????###?#""# "###"" """"" " | | ??????????## ####= #""#""" ! """" | | ??????????#" ! #""###"" !""""" | | ??????????# #?"#?#""" """" | | ??????????# M@ M #????##"" """ | | ??????????## ####% M #?????##" | | ???????????# ???######?????#"" | | ???????????# ???????????????#"""""""" | | ??????????"" ????????????????###"""""" " | | ?????????##"???????????????????#"#""""" "" | | ?????????? ????????????????????#####"#""""" | | ????????? ?????????????????????????####""## | | ??????????????????????????????????????##"#? | | ???????????????????????????????????????###? | | ??????????????????????????????????????????? | | ??????????????????????????????????????????? | | ??????????????????????????????????????????? | | ??????????????????????????????????????????? | | ??????????????????????????????????????????? | | ??????????????????????????????????????????? | | ??????????????????????????????????????????? | | ??????????????????????????????????????????? | | ??????????????????????????????????????????? | | ??????????????????????????????????????????? | | ??????????????????????????????????????????? | | ??????????????????????????????????????????? | | ??????????????????????????????????????????? | | ??????????????????????????????????????????? | | ??????????????????????????????????????????? | +----------------------------------------------------+ Best States ------------- Heat Dissipation 28 Energy Generation 5 Energy Capacity 100 Matter Stores 279 Matter Capacity 300 Sight Range 16 Robot Scan Range 15 Terrain Scan Density 10 ECM Strength 1 Armor Coverage 150 Resistance: KI 35 Resistance: TH 35 Resistance: EX 35 Resistance: EM 35 Resistance: I 35 Resistance: S 35 Resistance: P 35 Evasion (%) 63 Offensive Hacking 20 Item Schematics ----------------- None Robot Schematics ------------------ None Fabricated ------------ Nothing Repaired ---------- Nothing Studied --------- None Alien Tech Used ----------------- None Achievements -------------- None Challenges ------------ None Game ------ Seed WardroneLinkedMaul Manual? 0 Play Time 00:18:43 Cumulative 27.1 hours Start 2026.09.10 @ 21:57:25 End 2026.09.10 @ 22:15:08 Sessions 1 Manual Loads 0 Difficulty Explorer Special Mode None Game No. 29 Rogue 20 Adventurer 5 Explorer 4 Win Type - Total 0 Types 0/0/0/0/0/0/0/0/0/0 Lore% 11 Gallery% 17 Achievement% 16 Wizard Run 0 Options --------- Layout 1 ASCII 0 Keyboard 1 Movement Vi Keybinds 0 Fullscreen 1 Font 24/Crisp Map View 50x35 Zoom Use 0% Tactical HUD 0 Map Filters NONE Filters NONE Steam 1 RUN: b9cf2544-28c8-40d7-8e48-1e6cbb00024c